lending/lending_fUSD_20260306
["ID","MTS","AMOUNT","RATE_DAILY","PERIOD"]
[407756070,1772764240770,-500.0,0.00018999,2]
[407756071,1772764240779,-500.0,0.00018999,2]
[407756072,1772764240788,-500.0,0.00018999,2]
[407756073,1772764240797,-500.0,0.00018999,2]
[407756074,1772764240807,-500.0,0.00018999,2]
[407756075,1772764240816,-500.0,0.00018999,2]
[407756076,1772764240825,-500.0,0.00018999,2]
[407756077,1772764240834,-500.0,0.00018999,2]
[407756078,1772764240844,-193.74122191,0.00018999,2]
[407756079,1772764240854,-151.0,0.00018999,2]
[407756080,1772764240863,-250.0,0.00018999,2]
[407756081,1772764240872,-250.0,0.00018999,2]
[407756082,1772764240880,-1000.0,0.00018999,2]
[407756083,1772764240890,-257.94767592,0.00018999,2]
[407756084,1772764240900,-693.3919763,0.00018999,2]
[407756085,1772764240910,-503.01170887,0.00018999,2]
[407756086,1772764240919,-250.0,0.00018999,2]
[407756087,1772764240928,-250.0,0.00018999,2]
[407756088,1772764240937,-259.63761657,0.00018999,2]
[407756089,1772764240947,-1000.0,0.00018999,2]
[407756090,1772764240955,-1000.0,0.00018999,2]
[407756091,1772764240965,-1000.0,0.00018999,2]
[407756092,1772764240974,-1000.0,0.00018999,2]
[407756093,1772764240983,-1000.0,0.00018999,2]
[407756094,1772764240991,-1000.0,0.00018999,2]
[407756095,1772764241000,-201.4007416,0.00018999,2]
[407756096,1772764241010,-262.90206542,0.00018999,2]
[407756097,1772764241019,-269.917619,0.00018999,2]
[407756098,1772764241030,-753.3858378,0.00018999,2]
[407756100,1772764241039,-14218.10285156,0.00019,2]
[407756101,1772764241048,-184.4003812,0.00019,2]
[407756102,1772764241057,-151.0,0.00019054,2]
[407756103,1772764241067,-719.04747942,0.00019054,2]
[407756104,1772764241076,-443.2,0.00019106,2]
[407756105,1772764241085,-152.0,0.00019107,20]
[407756106,1772764241095,-151.0,0.00019109,2]
[407756107,1772764241105,-745.65223616,0.00019109,2]
[407756108,1772764241114,-412.64219789,0.0001916,2]
[407756109,1772764241123,-151.0,0.00019164,2]
[407756110,1772764241133,-773.2413689,0.00019164,2]
[407756111,1772764241143,-1300.0,0.00019178,7]
[407756112,1772764241152,-417.0,0.00019178,2]
[407756113,1772764241162,-395.28972696,0.00019189,2]
[407756114,1772764241172,-2000.0,0.000192,2]
[407756115,1772764241181,-1259.9,0.00019205,2]
[407756116,1772764241192,-152.0,0.00019217,21]
[407756117,1772764241202,-151.0,0.00019219,2]
[407756118,1772764241212,-801.85129955,0.00019219,2]
[407756119,1772764241221,-151.15,0.0001922,2]
[407756120,1772764241230,-157.81344283,0.0001926,2]
[407756121,1772764241241,-151.0,0.00019274,2]
[407756122,1772764241250,-831.51979763,0.00019274,2]
[407756123,1772764241259,-1000.0,0.00019294,2]
[407756124,1772764241269,-152.0,0.00019328,22]
[407756125,1772764241278,-155.25791837,0.00019329,2]
[407756126,1772764241288,-862.28603014,0.00019329,2]
[407756127,1772764241297,-1000.0,0.00019342,2]
[407756128,1772764241307,-172.74325605,0.00019344,2]
[407756129,1772764241317,-160.0,0.00019344,2]
[407756130,1772764241327,-168.48387271,0.00019348,2]
[407756131,1772764241337,-1000.0,0.00019351,2]
[407756132,1772764241347,-166.66,0.00019369,2]
[407756133,1772764241358,-894.19061326,0.00019384,2]
[407756134,1772764241368,-166.66,0.00019393,2]
[407756135,1772764241378,-152.0,0.00019438,23]
[407756136,1772764241393,-927.27566595,0.00019439,2]
[407756137,1772764241403,-1030.57363473,0.00019441,2]
[407756138,1772764241413,-700.0,0.00019452,7]
[407756139,1772764241422,-500.0,0.00019452,7]
[407756140,1772764241432,-685.36,0.00019476,2]
[407756141,1772764241442,-443.2,0.00019484,2]
[407756142,1772764241451,-151.15,0.0001949,2]
[407756143,1772764241460,-961.58486559,0.00019494,2]
[407756144,1772764241469,-451.4,0.0001952,2]
[407756145,1772764241479,-1282.924,0.00019532,2]
[407756146,1772764241489,-150.31,0.00019532,2]
[407756147,1772764241498,-1219.676,0.00019532,2]
[407756148,1772764241508,-922.0,0.00019532,2]
[407756149,1772764241518,-3517.111,0.00019532,2]
[407756150,1772764241532,-1341.0,0.00019532,2]
[407756151,1772764241542,-350.0,0.00019538,2]
[407756152,1772764241551,-395.28972696,0.00019544,2]
[407756153,1772764241561,-181.08010149,0.00019547,2]
[407756154,1772764241571,-1000.0,0.00019547,2]
[407756155,1772764241580,-272.62944185,0.00019547,2]
[407756156,1772764241589,-369.88455668,0.00019547,2]
[407756157,1772764241600,-152.0,0.00019549,24]
[407756158,1772764241609,-997.16350561,0.00019549,2]
[407756159,1772764241619,-1000.0,0.00019568,2]
[407756160,1772764241628,-500.0,0.00019589,2]
[407756161,1772764241638,-500.0,0.00019589,2]
[407756162,1772764241647,-500.0,0.00019589,2]
[407756163,1772764241657,-500.0,0.00019589,2]
[407756164,1772764241666,-500.0,0.00019589,2]
[407756165,1772764241675,-229.02014047,0.00019589,2]
[407756166,1772764241684,-2713.2436605,0.00019641,2]
[407756167,1772764241694,-11767.1131513,0.00019641,2]
[407756168,1772764241703,-152.0,0.00019659,25]
[407756169,1772764241713,-844.0,0.0001968,2]
[407756170,1772764241722,-151.15,0.0001976,2]
[407756171,1772764241732,-166.66,0.00019769,2]
[407756172,1772764241741,-152.0,0.00019769,26]
[407756173,1772764241750,-10000.0,0.000198,2]
[407756174,1772764241759,-500.0,0.0001984,2]
[407756175,1772764241770,-1000.0,0.00019842,2]
[407756176,1772764241779,-25000.0,0.00019865,3]
[407756177,1772764241789,-25000.0,0.00019874,3]
[407756178,1772764241798,-152.0,0.0001988,27]
[407756179,1772764241807,-25000.0,0.00019882,3]
[407756180,1772764241816,-25000.0,0.00019891,3]
[407756181,1772764241826,-5800.0,0.00019892,2]
[407756182,1772764241836,-25000.0,0.000199,3]
[407756183,1772764241845,-172.74325605,0.000199,3]
[407756184,1772764241855,-845.16,0.000199,2]
[407756185,1772764241864,-5800.0,0.000199,2]
[407756186,1772764241875,-21510.35850006,0.000199,3]
[407756187,1772764241886,-344.4825351,0.000199,2]
[407756188,1772764241896,-1030.57363473,0.000199,2]
[407756189,1772764241907,-395.28972696,0.000199,2]
[407756190,1772764241917,-157.81344283,0.000199,2]
[407756191,1772764241926,-168.48387271,0.000199,2]
[407756192,1772764241936,-3111.0,0.000199,2]
[407756193,1772764241946,-882.524513,0.00019924,2]
[407756194,1772764241955,-4057.1289174,0.0001995,2]
[407756195,1772764241965,-213944.686515,0.0001995,2]
[407756196,1772764241974,-153.26719895,0.00019952,2]
[407756197,1772764241983,-229.79782269,0.00019973,2]
[407756198,1772764241992,-168.9717679,0.00019973,2]
[407756199,1772764242001,-500.0,0.00019973,2]
[407756200,1772764242011,-546.12894098,0.00019973,2]
[407756201,1772764242020,-500.0,0.00019973,2]
[407756202,1772764242030,-547.9842787,0.00019973,2]
[407756203,1772764242040,-510.95525373,0.00019973,2]
[407756204,1772764242050,-500.0,0.00019973,2]
[407756205,1772764242061,-500.0,0.00019973,2]
[407756206,1772764242070,-500.0,0.00019973,2]
[407756207,1772764242079,-500.0,0.00019973,2]
[407756208,1772764242089,-500.52071293,0.00019973,2]
[407756209,1772764242098,-500.0,0.00019973,2]
[407756210,1772764242107,-500.0,0.00019973,2]
[407756211,1772764242117,-500.0,0.00019973,2]
[407756212,1772764242128,-500.0,0.00019973,2]
[407756213,1772764242137,-500.46240701,0.00019973,2]
[407756214,1772764242147,-500.0,0.00019973,2]
[407756215,1772764242156,-500.0,0.00019973,2]
[407756216,1772764242166,-500.0,0.00019973,2]
[407756217,1772764242175,-500.0,0.00019973,2]
[407756218,1772764242185,-500.0,0.00019973,2]
[407756219,1772764242195,-500.0,0.00019973,2]
[407756220,1772764242205,-500.0,0.00019973,2]
[407756221,1772764242215,-500.0,0.00019973,2]
[407756222,1772764242224,-500.0,0.00019973,2]
[407756223,1772764242233,-500.0,0.00019973,2]
[407756224,1772764242243,-500.0,0.00019973,2]
[407756225,1772764242253,-500.0,0.00019973,2]
[407756226,1772764242262,-331.25166911,0.00019973,2]
[407756227,1772764242272,-500.0,0.00019973,2]
[407756228,1772764242282,-500.0,0.00019973,2]
[407756229,1772764242291,-500.0,0.00019973,2]
[407756230,1772764242301,-500.0,0.00019973,2]
[407756231,1772764242311,-150.0,0.00019988,2]
[407756232,1772764242320,-152.0,0.0001999,28]
[407756233,1772764242330,-394.47533164,0.00019999,2]
[407756234,1772764242339,-150.0,0.00019999,2]
[407756235,1772764242347,-160.04502343,0.00019999,2]
[407756236,1772764242357,-480539.86365937,0.0002,2]
[407756237,1772764242366,-657178.400307,0.0002,2]
[407756238,1772764242375,-478168.62683949,0.0002,2]
[407756239,1772764242384,-372304.0855921,0.0002,2]
[407756240,1772764242508,-420.86114321,0.00016589,2]
[407756241,1772764242533,-1639.81824446,0.00016589,2]
[407756242,1772764242544,-1587.711,0.00016589,2]
[407756243,1772764242555,-2931.33807044,0.00016589,2]
[407756244,1772764242567,-198.24036892,0.00016798,2]
[407756245,1772764242576,-100.16272956,0.000183,2]
[407756246,1772764242587,-425.63,0.000183,2]
[407756247,1772764242601,-500.0,0.000183,2]
[407756248,1772764242631,-676.85558405,0.000183,2]
[407756249,1772764242641,-5384.71961246,0.0002,2]
[407756250,1772764242652,-6465.33110218,0.0002,2]
[407756251,1772764242670,-922.18333418,0.0002,2]
[407756257,1772764243187,-5000.0,0.00016699,2]
[407756258,1772764243197,-1042.0,0.00019532,2]
[407756259,1772764243207,-4030.13946771,0.0002,2]
[407756260,1772764243218,-977.36552474,0.0002,2]
[407756261,1772764243241,-2871.35144006,0.0002,2]
[407756270,1772764243754,-0.54132231,0.0002,2]
[407756271,1772764243770,-11897.00218966,0.0002,2]
[407756286,1772764246095,-3857.7123853,0.00016957,2]
[407756288,1772764246107,-2722.01607281,0.00016957,2]
[407756290,1772764246116,-1702.64831361,0.000199,2]
[407756291,1772764246126,-28242.18998533,0.0002,2]
[407756295,1772764340438,500.0,0.00012,2]
[407756296,1772764519068,454.08,0.0001629,2]
[407756297,1772764617893,542.93,0.00015935,2]
[407756298,1772764645033,1623.638989,0.00016265,2]
[407756299,1772764651585,736.41,0.00015939,2]
[407756303,1772764709414,10058.28,0.00015856,2]
[407756304,1772764729143,999.97,0.000151,10]
[407756305,1772764747717,500.0,0.00015872,2]
[407756306,1772764798931,5929.9,0.00015952,2]
[407756307,1772765015268,154.83,7.858e-05,2]
[407756308,1772765015483,154.83,0.00010478,2]
[407756309,1772765015689,154.83,0.00013097,2]
[407756310,1772765015896,154.83,0.00015716,2]
[407756311,1772765097247,150.0,0.00015722,2]
[407756312,1772765156560,1000.15,0.0001629,2]
[407756313,1772765171983,500.0,0.0001629,2]
[407756314,1772765183088,500.0,0.0001629,2]
[407756315,1772765194121,369.82484825,0.00016231,2]
[407756316,1772765195718,200.0,0.00015741,2]
[407756317,1772765217540,1000.88,0.0001629,2]
[407756319,1772765432251,-369.82484825,0.0001631,2]
[407756320,1772765432260,-287.0,0.0001631,2]
[407756321,1772765432270,-250.0,0.00016316,2]
[407756322,1772765432279,-189.03928642,0.00016344,2]
[407756323,1772765432289,-300.0,0.00016388,2]
[407756324,1772765432298,-300.0,0.00016388,2]
[407756325,1772765432307,-1200.0,0.00016388,2]
[407756326,1772765432317,-300.0,0.00016388,2]
[407756327,1772765432326,-369.82484825,0.00016389,2]
[407756328,1772765432335,-9271.0645474,0.00016389,2]
[407756329,1772765432345,-12.31911527,0.00016437,5]
[407756333,1772765432488,-387.68088473,0.00016437,5]
[407756334,1772765432498,-1765.99879211,0.00016477,2]
[407756335,1772765432507,-77425.863,0.00016479,2]
[407756336,1772765432516,-550.0,0.00016487,2]
[407756337,1772765432525,-5839.1844,0.00016488,2]
[407756338,1772765432534,-444.1157,0.00016488,2]
[407756339,1772765432543,-1004.55602663,0.00016488,2]
[407756340,1772765432553,-3490.4742,0.00016488,2]
[407756341,1772765432562,-2500.0,0.00016489,2]
[407756342,1772765432571,-3991.55051219,0.00016489,2]
[407756343,1772765432580,-516.46,0.00016489,2]
[407756344,1772765432590,-709.23,0.00016489,2]
[407756345,1772765432599,-978.79,0.00016489,2]
[407756346,1772765432608,-499.99,0.00016489,2]
[407756347,1772765432618,-999.99,0.00016489,2]
[407756348,1772765432627,-9999.99,0.00016489,2]
[407756349,1772765432636,-3426.56,0.00016489,2]
[407756350,1772765432646,-9999.99,0.00016489,2]
[407756351,1772765432655,-9999.99,0.00016489,2]
[407756352,1772765432664,-33119.72,0.00016489,2]
[407756353,1772765432674,-2989.5,0.00016489,2]
[407756354,1772765432686,-9999.99,0.00016489,2]
[407756355,1772765432695,-7288.86,0.00016489,2]
[407756356,1772765432705,-8997.9,0.00016489,2]
[407756357,1772765432715,-9999.99,0.00016489,2]
[407756358,1772765432724,-299.99,0.00016489,4]
[407756359,1772765432734,-150.99,0.00016489,2]
[407756360,1772765432743,-150.99,0.00016489,2]
[407756361,1772765432753,-157919.68,0.00016489,2]
[407756362,1772765432763,-165.083,0.00016489,2]
[407756363,1772765432771,-2385.935,0.00016489,2]
[407756364,1772765432781,-698.48535133,0.00016498,2]
[407756365,1772765432790,-157.81344285,0.00016498,2]
[407756366,1772765432799,-3193.24959451,0.000165,2]
[407756367,1772765432808,-5700.0,0.00016548,2]
[407756368,1772765432817,-576.02335885,0.00016576,2]
[407756369,1772765432826,-576.02335885,0.00016576,2]
[407756370,1772765432836,-576.02335885,0.00016576,2]
[407756371,1772765432845,-576.02335885,0.00016576,2]
[407756372,1772765432855,-576.02335885,0.00016576,2]
[407756373,1772765432864,-576.02335885,0.00016576,2]
[407756374,1772765432873,-576.02335885,0.00016576,2]
[407756375,1772765432883,-576.02335885,0.00016576,2]
[407756376,1772765432897,-576.02335885,0.00016576,2]
[407756377,1772765432906,-576.02335885,0.00016576,2]
[407756378,1772765432915,-576.02335885,0.00016576,2]
[407756379,1772765432924,-576.02335885,0.00016576,2]
[407756380,1772765432935,-576.02335885,0.00016576,2]
[407756381,1772765432944,-576.02335885,0.00016576,2]
[407756382,1772765432954,-576.02335885,0.00016576,2]
[407756383,1772765432967,-576.02335885,0.00016576,2]
[407756384,1772765432977,-576.02335885,0.00016576,2]
[407756385,1772765432986,-576.02335885,0.00016576,2]
[407756386,1772765432996,-576.02335885,0.00016576,2]
[407756387,1772765433007,-576.02335885,0.00016576,2]
[407756388,1772765433017,-576.02335885,0.00016576,2]
[407756389,1772765433026,-576.02335885,0.00016576,2]
[407756390,1772765433036,-576.02335885,0.00016576,2]
[407756391,1772765433046,-576.02335885,0.00016576,2]
[407756392,1772765433056,-576.02335885,0.00016576,2]
[407756393,1772765433065,-576.02335885,0.00016576,2]
[407756394,1772765433075,-576.02335885,0.00016576,2]
[407756395,1772765433086,-576.02335885,0.00016576,2]
[407756396,1772765433095,-576.02335885,0.00016576,2]
[407756397,1772765433104,-576.02335885,0.00016576,2]
[407756398,1772765433114,-576.02335885,0.00016576,2]
[407756399,1772765433124,-576.02335885,0.00016576,2]
[407756400,1772765433133,-504.72589322,0.00016577,2]
[407756401,1772765433142,-211.77927257,0.00016579,2]
[407756402,1772765433152,-500.0,0.00016579,2]
[407756403,1772765433161,-200.0,0.00016579,2]
[407756404,1772765433171,-151.0,0.00016579,2]
[407756405,1772765433179,-151.0,0.00016579,2]
[407756406,1772765433188,-151.0,0.00016579,2]
[407756407,1772765433198,-151.0,0.00016579,2]
[407756408,1772765433207,-500.0,0.00016579,2]
[407756409,1772765433217,-151.0,0.00016579,2]
[407756410,1772765433227,-500.0,0.00016579,2]
[407756411,1772765433237,-151.0,0.00016579,2]
[407756412,1772765433246,-500.0,0.00016579,2]
[407756413,1772765433256,-500.0,0.00016579,2]
[407756414,1772765433266,-151.0,0.00016579,2]
[407756415,1772765433276,-500.0,0.00016579,2]
[407756416,1772765433285,-500.0,0.00016579,2]
[407756417,1772765433294,-151.0,0.00016579,2]
[407756418,1772765433303,-500.0,0.00016579,2]
[407756419,1772765433313,-500.0,0.00016579,2]
[407756420,1772765433322,-151.0,0.00016579,2]
[407756421,1772765433332,-500.0,0.00016579,2]
[407756422,1772765433342,-500.0,0.00016579,2]
[407756423,1772765433352,-151.0,0.00016579,2]
[407756424,1772765433361,-500.0,0.00016579,2]
[407756425,1772765433371,-500.0,0.00016579,2]
[407756426,1772765433381,-500.0,0.00016579,2]
[407756427,1772765433390,-500.0,0.00016579,2]
[407756428,1772765433399,-151.0,0.00016579,2]
[407756429,1772765433409,-500.0,0.00016579,2]
[407756430,1772765433418,-500.0,0.00016579,2]
[407756431,1772765433427,-151.0,0.00016579,2]
[407756432,1772765433437,-500.0,0.00016579,2]
[407756433,1772765433447,-500.0,0.00016579,2]
[407756434,1772765433457,-151.0,0.00016579,2]
[407756435,1772765433466,-500.0,0.00016579,2]
[407756436,1772765433476,-500.0,0.00016579,2]
[407756437,1772765433486,-151.0,0.00016579,2]
[407756438,1772765433496,-500.0,0.00016579,2]
[407756439,1772765433505,-151.0,0.00016579,2]
[407756440,1772765433514,-500.0,0.00016579,2]
[407756441,1772765433525,-151.0,0.00016579,2]
[407756442,1772765433535,-151.0,0.00016579,2]
[407756443,1772765433543,-151.0,0.00016579,2]
[407756444,1772765433553,-151.0,0.00016579,2]
[407756445,1772765433563,-151.0,0.00016579,2]
[407756446,1772765433572,-151.0,0.00016579,2]
[407756447,1772765433581,-151.0,0.00016579,2]
[407756448,1772765433590,-151.0,0.00016579,2]
[407756449,1772765433599,-151.0,0.00016579,2]
[407756450,1772765433609,-151.0,0.00016579,2]
[407756451,1772765433618,-151.0,0.00016579,2]
[407756452,1772765433627,-151.0,0.00016579,2]
[407756453,1772765433637,-151.0,0.00016579,2]
[407756454,1772765433646,-151.0,0.00016579,2]
[407756455,1772765433657,-151.0,0.00016579,2]
[407756456,1772765433666,-151.0,0.00016579,2]
[407756457,1772765433676,-151.5826125,0.00016579,2]
[407756458,1772765433685,-151.0,0.00016586,2]
[407756459,1772765433695,-151.0,0.00016586,2]
[407756460,1772765433705,-151.0,0.00016586,2]
[407756461,1772765433714,-500.0,0.00016588,2]
[407756462,1772765433723,-357.79370278,0.00016588,2]
[407756463,1772765433733,-500.0,0.00016588,2]
[407756464,1772765433742,-361.47769466,0.00016588,2]
[407756465,1772765433751,-500.0,0.00016588,2]
[407756466,1772765433761,-202.9320023,0.00016588,2]
[407756467,1772765433770,-168.96544338,0.00016588,2]
[407756468,1772765433780,-233.8010746,0.00016588,2]
[407756469,1772765433790,-272.57120435,0.00016588,2]
[407756470,1772765433799,-154.48099778,0.00016588,2]
[407756471,1772765433809,-8896.77320765,0.00016588,2]
[407756472,1772765433819,-1036.47008289,0.00016588,5]
[407756473,1772765433828,-464.45,0.00016588,2]
[407756474,1772765433837,-507128.32015202,0.00016589,2]
[407756475,1772765433850,-195396.8912245,0.00016589,2]
[407756476,1772765433862,-250149.34186614,0.00016589,2]
[407756477,1772765433874,-362299.75117876,0.00016589,2]
[407756478,1772765433889,-1254.41808677,0.00016589,2]
[407756479,1772765438385,-500.0,0.00016488,2]
[407756480,1772765438395,-80.23789574,0.00016488,2]
[407756481,1772765438406,-419.76210426,0.00016488,2]
[407756482,1772765438416,-500.0,0.00016488,2]
[407756483,1772765438425,-500.0,0.00016488,2]
[407756484,1772765438436,-261.29297278,0.00016488,2]
[407756485,1772765438447,-240.76164942,0.00016488,2]
[407756486,1772765438456,-500.0,0.00016488,2]
[407756487,1772765438466,-500.0,0.00016488,2]
[407756488,1772765438478,-500.0,0.00016488,2]
[407756489,1772765438489,-500.0,0.00016488,2]
[407756490,1772765438498,-500.0,0.00016488,2]
[407756491,1772765438507,-500.0,0.00016488,2]
[407756492,1772765438517,-500.0,0.00016488,2]
[407756493,1772765438526,-500.0,0.00016488,2]
[407756494,1772765438535,-500.0,0.00016488,2]
[407756495,1772765438545,-500.0,0.00016488,2]
[407756496,1772765438554,-500.0,0.00016488,2]
[407756497,1772765438563,-500.0,0.00016488,2]
[407756498,1772765438572,-89.33484649,0.00016488,2]
[407756499,1772765438583,-410.66515351,0.00016488,2]
[407756500,1772765438593,-500.0,0.00016488,2]
[407756501,1772765438602,-500.0,0.00016488,2]
[407756502,1772765438612,-500.0,0.00016488,2]
[407756503,1772765438621,-500.0,0.00016488,2]
[407756504,1772765438630,-500.0,0.00016488,2]
[407756505,1772765438640,-500.0,0.00016488,2]
[407756506,1772765438649,-500.0,0.00016488,2]
[407756507,1772765438659,-500.0,0.00016488,2]
[407756508,1772765438672,-500.0,0.00016488,2]
[407756509,1772765438681,-500.0,0.00016488,2]
[407756510,1772765438691,-500.0,0.00016488,2]
[407756511,1772765438700,-500.0,0.00016488,2]
[407756512,1772765438710,-500.0,0.00016488,2]
[407756513,1772765438720,-500.0,0.00016488,2]
[407756514,1772765438729,-500.0,0.00016488,2]
[407756515,1772765438739,-500.0,0.00016488,2]
[407756516,1772765438749,-500.0,0.00016488,2]
[407756517,1772765438763,-500.0,0.00016488,2]
[407756518,1772765438781,-500.0,0.00016488,2]
[407756519,1772765438797,-500.0,0.00016488,2]
[407756520,1772765438807,-500.0,0.00016488,2]
[407756521,1772765438817,-500.0,0.00016488,2]
[407756522,1772765438826,-500.0,0.00016488,2]
[407756523,1772765438836,-500.0,0.00016488,2]
[407756524,1772765438845,-500.0,0.00016488,2]
[407756525,1772765438854,-500.0,0.00016488,2]
[407756526,1772765438864,-500.0,0.00016488,2]
[407756527,1772765438873,-500.0,0.00016488,2]
[407756528,1772765438886,-500.0,0.00016488,2]
[407756529,1772765438896,-547.36649275,0.00016488,2]
[407756530,1772765438906,-500.0,0.00016488,2]
[407756531,1772765438915,-500.0,0.00016488,2]
[407756532,1772765438925,-500.0,0.00016488,2]
[407756533,1772765438935,-500.0,0.00016488,2]
[407756534,1772765438944,-567.54943789,0.00016498,2]
[407756535,1772765438953,-1183771.27749181,0.00016589,2]
[407756536,1772765438964,-513.91619151,0.00016598,2]
[407756537,1772765438974,-500.0,0.00016598,2]
[407756538,1772765438983,-231.1418293,0.00016598,2]
[407756539,1772765438994,-516.17814884,0.00016598,2]
[407756540,1772765439003,-633.07514465,0.00016598,2]
[407756541,1772765439012,-500.0,0.00016598,2]
[407756542,1772765439021,-500.0,0.00016598,2]
[407756543,1772765439031,-500.0,0.00016598,2]
[407756544,1772765439040,-500.0,0.00016598,2]
[407756545,1772765439049,-500.0,0.00016598,2]
[407756546,1772765439059,-341.64411572,0.00016598,2]
[407756547,1772765439069,-500.0,0.00016598,2]
[407756548,1772765439078,-500.0,0.00016598,2]
[407756549,1772765439087,-500.0,0.00016598,2]
[407756550,1772765439096,-500.0,0.00016598,2]
[407756551,1772765439105,-501.89301676,0.00016598,2]
[407756552,1772765439115,-502.59968409,0.00016598,2]
[407756553,1772765439124,-32082.71033423,0.00016657,2]
[407756554,1772765439133,-311.10483949,0.00016688,2]
[407756555,1772765439143,-381.27690635,0.00016688,2]
[407756556,1772765439152,-32912.143,0.00016689,2]
[407756557,1772765439161,-9271.06454737,0.00016779,2]
[407756558,1772765439170,-510.60559038,0.00016788,2]
[407756559,1772765439179,-165.60308062,0.0001679,2]
[407756560,1772765439189,-191.15162286,0.0001679,2]
[407756561,1772765439199,-196.68261924,0.0001679,2]
[407756562,1772765439208,-199.97552041,0.0001679,2]
[407756563,1772765439219,-218.17573376,0.0001679,2]
[407756564,1772765439228,-364.11312308,0.0001679,2]
[407756565,1772765439238,-446.98066296,0.0001679,2]
[407756566,1772765439247,-510.05051241,0.0001679,2]
[407756567,1772765439257,-545.98069762,0.0001679,2]
[407756568,1772765439267,-155.61,0.0001679,2]
[407756569,1772765439276,-1765.99879211,0.00016857,2]
[407756570,1772765439285,-464.45,0.00016862,2]
[407756571,1772765439295,-302.08963945,0.000169,2]
[407756572,1772765439304,-155.61,0.0001706,2]
[407756573,1772765439314,-225.54,0.00017092,2]
[407756574,1772765439323,-200.0,0.00017127,2]
[407756575,1772765439332,-464.45,0.00017136,2]
[407756576,1772765439341,-270.35234818,0.00017146,5]
[407756577,1772765439350,-9271.06454737,0.00017169,2]
[407756578,1772765439359,-157.81344283,0.00017178,2]
[407756579,1772765439369,-1765.99879211,0.00017238,2]
[407756580,1772765439378,-152.0,0.00017321,3]
[407756581,1772765439387,-155.61,0.0001733,2]
[407756582,1772765439397,-464.45,0.0001741,2]
[407756583,1772765439406,-1281.08,0.000175,2]
[407756584,1772765439415,-152.0,0.00017525,4]
[407756585,1772765439425,-6213.89,0.00017527,2]
[407756586,1772765439434,-9271.06454737,0.00017559,2]
[407756587,1772765439444,-500.0,0.00017562,2]
[407756588,1772765439453,-155.61,0.000176,2]
[407756589,1772765439462,-554.0,0.00017608,2]
[407756590,1772765439471,-1765.99879211,0.00017618,2]
[407756591,1772765439481,-200.0,0.00017675,2]
[407756592,1772765439490,-464.49843405,0.00017684,2]
[407756593,1772765439500,-152.0,0.00017728,5]
[407756594,1772765439509,-226.19,0.00017736,2]
[407756595,1772765439518,-157.81344283,0.00017859,2]
[407756596,1772765439528,-155.61,0.0001787,2]
[407756597,1772765439537,-301.0,0.0001791,2]
[407756598,1772765439546,-420.0,0.0001791,2]
[407756599,1772765439556,-152.0,0.00017931,6]
[407756600,1772765439565,-203.28251889,0.00017938,2]
[407756601,1772765439574,-196.71748111,0.00017939,2]
[407756602,1772765439583,-500.0,0.00017941,2]
[407756603,1772765439592,-250.0,0.00017941,2]
[407756604,1772765439602,-1871.98981135,0.00017941,2]
[407756605,1772765439611,-642.97646691,0.00017941,2]
[407756606,1772765439621,-2500.0,0.00017941,2]
[407756607,1772765439630,-2500.0,0.00017941,2]
[407756608,1772765439639,-2500.0,0.00017941,2]
[407756609,1772765439648,-177.30715191,0.00017941,2]